[Event "Turning Torso Chess Event 2021"]
[Site "Malmoe"]
[Date "2021.08.22"]
[Round "17.5"]
[White "Smith, Axel"]
[Black "Hector, Jonny"]
[Result "0-1"]
[ECO "C58"]
[WhiteElo "2451"]
[BlackElo "2465"]
[Annotator "ChessBase"]
[PlyCount "184"]
[EventDate "2021.08.20"]
[EventType "tourn"]
[EventCountry "SWE"]
[SourceTitle "playchess.com"]
[Source "ChessBase"]
[SourceQuality "1"]
[TimeControl "900+5"]

1. e4 {[%emt 0:00:01]} e5 {[%emt 0:00:02]} 2. Nf3 {[%emt 0:00:02]} Nc6 {
[%emt 0:00:02]} 3. Bc4 {[%emt 0:00:01]} Nf6 {[%emt 0:00:02]} 4. Ng5 {[%emt 0:
00:01]} d5 {[%emt 0:00:05]} 5. exd5 {[%emt 0:00:02]} Na5 {[%emt 0:00:03]} 6.
Bb5+ {[%emt 0:00:01]} c6 {[%emt 0:00:03]} 7. dxc6 {[%emt 0:00:01]} bxc6 {
[%emt 0:00:01]} 8. Bd3 {[%emt 0:00:01]} Nd5 {[%emt 0:00:26]} 9. Nf3 {[%emt 0:
00:17]} Bd6 {[%emt 0:00:03]} 10. O-O {[%emt 0:00:11]} Nf4 {[%emt 0:00:03]} 11.
Re1 {[%emt 0:00:06]} Nxd3 {[%emt 0:00:39]} 12. cxd3 {[%emt 0:00:01]} O-O {
[%emt 0:00:11]} 13. Nxe5 {[%emt 0:00:11]} Bc7 {[%emt 0:00:55]} 14. Nc3 {
[%emt 0:02:44]} c5 {[%emt 0:00:34]} 15. b3 {[%emt 0:00:52]} Bb7 {[%emt 0:00:54]
} 16. Bb2 {[%emt 0:01:11]} Re8 {[%emt 0:01:01]} 17. Nf3 {[%emt 0:03:50]} Qxd3 {
[%emt 0:01:29]} 18. Re3 {[%emt 0:00:42]} Qd7 {[%emt 0:00:39]} 19. Qe2 {[%emt 0:
00:58]} Bf4 {[%emt 0:00:11]} 20. Re1 {[%emt 0:01:49]} Bxe3 {[%emt 0:00:13]} 21.
dxe3 {[%emt 0:00:01]} Qc6 {[%emt 0:00:26]} 22. e4 {[%emt 0:00:23]} Qg6 {
[%emt 0:01:17]} 23. Nh4 {[%emt 0:00:18]} Qg5 {[%emt 0:01:42]} 24. Nf3 {[%emt 0:
00:01]} Qe7 {[%emt 0:00:19]} 25. Qe3 {[%emt 0:00:10]} c4 {[%emt 0:00:22]} 26.
Qd4 {[%emt 0:00:22]} Rad8 {[%emt 0:01:12]} 27. Nd5 {[%emt 0:00:09]} Qf8 {
[%emt 0:00:02]} 28. bxc4 {[%emt 0:00:59]} f5 {[%emt 0:00:20]} 29. Ne5 {[%emt 0:
00:42]} fxe4 {[%emt 0:00:20]} 30. Ng4 {[%emt 0:00:25]} Kh8 {[%emt 0:01:06]} 31.
Nge3 {[%emt 0:00:14]} Nc6 {[%emt 0:00:15]} 32. Qc3 {[%emt 0:00:43]} Qf7 {
[%emt 0:00:44]} 33. Qa3 {[%emt 0:00:13]} Ne5 {[%emt 0:00:08]} 34. Bxe5 {
[%emt 0:00:03]} Rxe5 {[%emt 0:00:01]} 35. Qxa7 {[%emt 0:00:01]} Bxd5 {[%emt 0:
00:02]} 36. Qd4 {[%emt 0:00:03]} Ree8 {[%emt 0:00:47]} 37. Nxd5 {[%emt 0:00:01]
} Qg6 {[%emt 0:00:33]} 38. Qe3 {[%emt 0:00:07]} Qc6 {[%emt 0:00:10]} 39. Qd4 {
[%emt 0:00:01]} Qa6 {[%emt 0:00:05]} 40. Rxe4 {[%emt 0:00:07]} Qxa2 {[%emt 0:
00:14]} 41. Rxe8+ {[%emt 0:00:02]} Rxe8 {[%emt 0:00:01]} 42. g3 {[%emt 0:00:01]
} h6 {[%emt 0:00:04]} 43. Ne3 {[%emt 0:00:04]} Ra8 {[%emt 0:00:07]} 44. Kg2 {
[%emt 0:00:03]} Qb1 {[%emt 0:00:10]} 45. Qd5 {[%emt 0:00:06]} Ra1 {[%emt 0:00:
09]} 46. c5 {[%emt 0:00:09]} Qh1+ {[%emt 0:00:32]} 47. Kh3 {[%emt 0:00:01]}
Qxd5 {[%emt 0:00:02]} 48. Nxd5 {[%emt 0:00:01]} Rc1 {[%emt 0:00:01]} 49. Ne3 {
[%emt 0:00:04]} Rxc5 {[%emt 0:00:02]} 50. Kg4 {[%emt 0:00:08]} Kg8 {[%emt 0:00:
01]} 51. h4 {[%emt 0:00:03]} Ra5 {[%emt 0:00:01]} 52. Kf3 {[%emt 0:00:07]} Kf7
{[%emt 0:00:04]} 53. Kf4 {[%emt 0:00:05]} Ke6 {[%emt 0:00:05]} 54. Kf3 {
[%emt 0:00:04]} Ra4 {[%emt 0:00:06]} 55. Ng2 {[%emt 0:00:21]} Ke5 {[%emt 0:00:
15]} 56. Ne3 {[%emt 0:00:02]} h5 {[%emt 0:00:10]} 57. Ng2 {[%emt 0:00:03]} Ra3+
{[%emt 0:00:02]} 58. Ne3 {[%emt 0:00:08]} Rb3 {[%emt 0:00:01]} 59. g4 {[%emt 0:
00:13]} hxg4+ {[%emt 0:00:10]} 60. Kxg4 {[%emt 0:00:01]} Kf6 {[%emt 0:00:03]}
61. Kg3 {[%emt 0:00:03]} Ra3 {[%emt 0:00:03]} 62. Kf4 {[%emt 0:00:02]} Ra4+ {
[%emt 0:00:03]} 63. Kg3 {[%emt 0:00:01]} Kg6 {[%emt 0:00:01]} 64. Ng2 {[%emt 0:
00:06]} Kf5 {[%emt 0:00:06]} 65. Ne3+ {[%emt 0:00:03]} Ke4 {[%emt 0:00:03]} 66.
h5 {[%emt 0:00:11]} Ke5 {[%emt 0:00:07]} 67. f3 {[%emt 0:00:15]} Kf6 {[%emt 0:
00:04]} 68. f4 {[%emt 0:00:02]} Ra3 {[%emt 0:00:07]} 69. Kf3 {[%emt 0:00:02]}
Kf7 {[%emt 0:00:01]} 70. Kf2 {[%emt 0:00:00]} Kg8 {[%emt 0:00:01]} 71. Ng4 {
[%emt 0:00:10]} Kh7 {[%emt 0:00:04]} 72. f5 {[%emt 0:00:05]} Ra5 {[%emt 0:00:
04]} 73. f6 {[%emt 0:00:11]} Rf5+ {[%emt 0:00:05]} 74. Ke3 {[%emt 0:00:05]}
gxf6 {[%emt 0:00:02]} 75. Ke4 {[%emt 0:00:01]} Rf1 {[%emt 0:00:04]} 76. Ke3 {
[%emt 0:00:01]} f5 {[%emt 0:00:11]} 77. Nh2 {[%emt 0:00:07]} Rh1 {[%emt 0:00:
02]} 78. Nf3 {[%emt 0:00:04]} Rxh5 {[%emt 0:00:02]} 79. Kf4 {[%emt 0:00:01]}
Kg6 {[%emt 0:00:01]} 80. Ke5 {[%emt 0:00:01]} Rh8 {[%emt 0:00:09]} 81. Kf4 {
[%emt 0:00:06]} Rh1 {[%emt 0:00:13]} 82. Kg3 {[%emt 0:00:14]} Kf6 {[%emt 0:00:
03]} 83. Kf4 {[%emt 0:00:02]} Ra1 {[%emt 0:00:01]} 84. Kg3 {[%emt 0:00:03]} Ra4
{[%emt 0:00:01]} 85. Kf2 {[%emt 0:00:04]} Ke6 {[%emt 0:00:03]} 86. Ke3 {
[%emt 0:00:02]} Kd5 {[%emt 0:00:03]} 87. Nd2 {[%emt 0:00:13]} f4+ {[%emt 0:00:
04]} 88. Kf3 {[%emt 0:00:02]} Ke5 {[%emt 0:00:02]} 89. Kg4 {[%emt 0:00:03]} Ra8
{[%emt 0:00:25]} 90. Nf3+ {[%emt 0:00:08]} Ke4 {[%emt 0:00:03]} 91. Nd2+ {
[%emt 0:00:00]} Kd3 {[%emt 0:00:07]} 92. Nb3 {[%emt 0:00:13]} Ke3 {[%emt 0:00:
04]} 0-1

[Event "Turning Torso Chess Event 2021"]
[Site "Malmoe"]
[Date "2021.08.22"]
[Round "11.4"]
[White "Smith, Axel"]
[Black "Blomqvist, Erik"]
[Result "1/2-1/2"]
[ECO "B27"]
[WhiteElo "2451"]
[BlackElo "2537"]
[Annotator "RC"]
[PlyCount "57"]
[EventDate "2021.08.20"]
[EventType "tourn"]
[EventCountry "SWE"]
[SourceTitle "playchess.com"]
[Source "ChessBase"]
[SourceQuality "1"]
[TimeControl "900+5"]

1. e4 {[%emt 0:00:01]} c5 {[%emt 0:00:02]} 2. Nc3 {[%emt 0:00:02]} g6 {[%emt 0:
00:06]} 3. d4 {[%emt 0:00:06]} cxd4 {[%emt 0:00:01]} 4. Qxd4 {[%emt 0:00:01]}
Nf6 {[%emt 0:00:02]} 5. Nf3 {[%emt 0:00:28]} Nc6 {[%emt 0:00:02]} 6. Qa4 {
[%emt 0:00:02]} d6 {[%emt 0:00:03]} 7. e5 {[%emt 0:00:03]} dxe5 {[%emt 0:00:01]
} 8. Nxe5 {[%emt 0:00:02]} Bg7 {[%emt 0:00:02]} 9. Nxc6 {[%emt 0:00:54]} bxc6 {
[%emt 0:00:02]} 10. Qxc6+ {[%emt 0:02:36]} Bd7 {[%emt 0:00:01]} 11. Qa6 {
[%emt 0:00:06]} O-O {[%emt 0:00:08]} 12. Be2 {[%emt 0:02:23]} Bf5 {[%emt 0:01:
06]} 13. Bd3 {[%emt 0:00:02]} Bxd3 {[%emt 0:02:21]} 14. Qxd3 {[%emt 0:00:07]}
Qxd3 {[%emt 0:00:02]} 15. cxd3 {[%emt 0:00:01]} Rfd8 {[%emt 0:00:01]} 16. Ke2 {
[%emt 0:00:28]} Nd5 {[%emt 0:00:01]} 17. Nxd5 {[%emt 0:01:40]} Rxd5 {[%emt 0:
00:01]} 18. Rb1 {[%emt 0:00:24]} Rb8 {[%emt 0:00:23]} 19. b3 {[%emt 0:02:31]}
Ra5 {[%emt 0:01:08]} 20. a3 {[%emt 0:00:05]} Rc5 {[%emt 0:04:50]} 21. Rd1 {
[%emt 0:00:40]} Rc2+ {[%emt 0:00:37]} 22. Rd2 {[%emt 0:02:11]} Rc3 {[%emt 0:00:
15]} 23. b4 {[%emt 0:00:01]} Bh6 {[%emt 0:01:38]} 24. Rd1 {[%emt 0:00:01]} Bxc1
{[%emt 0:00:11]} 25. Rdxc1 {[%emt 0:00:01]} Rxa3 {[%emt 0:00:01]} 26. Ra1 {
[%emt 0:00:08]} Rxa1 {[%emt 0:00:06]} 27. Rxa1 {[%emt 0:00:00]} Rxb4 {[%emt 0:
00:04]} 28. Rxa7 {[%emt 0:00:02]} e6 {[%emt 0:00:06]} 29. Ke3 {[%emt 0:00:05]}
1/2-1/2

[Event "Turning Torso Chess Event 2021"]
[Site "Malmoe"]
[Date "2021.08.22"]
[Round "14.5"]
[White "Schussler, Harry"]
[Black "Westerberg, Jonathan"]
[Result "1/2-1/2"]
[ECO "D22"]
[WhiteElo "2410"]
[BlackElo "2526"]
[Annotator "RC"]
[PlyCount "205"]
[EventDate "2021.08.20"]
[EventType "tourn"]
[EventCountry "SWE"]
[SourceTitle "playchess.com"]
[Source "ChessBase"]
[SourceQuality "1"]
[TimeControl "900+5"]

1. d4 {[%emt 0:00:02]} d5 {[%emt 0:00:23]} 2. Nf3 {[%emt 0:00:06]} Nf6 {
[%emt 0:00:04]} 3. c4 {[%emt 0:00:03]} dxc4 {[%emt 0:00:09]} 4. e3 {[%emt 0:00:
10]} Bg4 {[%emt 0:00:03]} 5. Bxc4 {[%emt 0:00:11]} e6 {[%emt 0:00:02]} 6. h3 {
[%emt 0:00:20]} Bh5 {[%emt 0:00:01]} 7. O-O {[%emt 0:00:42]} a6 {[%emt 0:00:06]
} 8. Nc3 {[%emt 0:00:43]} Nc6 {[%emt 0:00:24]} 9. b3 {[%emt 0:01:21]} Bd6 {
[%emt 0:00:05]} 10. Bb2 {[%emt 0:00:09]} O-O {[%emt 0:00:03]} 11. Be2 {[%emt 0:
00:23]} Qe8 {[%emt 0:04:29]} 12. Rc1 {[%emt 0:02:58]} Rd8 {[%emt 0:01:00]} 13.
Nd2 {[%emt 0:00:22]} Bxe2 {[%emt 0:00:35]} 14. Qxe2 {[%emt 0:00:02]} e5 {
[%emt 0:00:01]} 15. d5 {[%emt 0:01:19]} Ne7 {[%emt 0:00:03]} 16. e4 {[%emt 0:
00:06]} Ng6 {[%emt 0:00:12]} 17. g3 {[%emt 0:00:34]} Nd7 {[%emt 0:00:05]} 18.
Nc4 {[%emt 0:00:16]} Bc5 {[%emt 0:00:41]} 19. Ne3 {[%emt 0:00:23]} Ne7 {
[%emt 0:00:21]} 20. Na4 {[%emt 0:00:18]} Bd6 {[%emt 0:00:06]} 21. Nc3 {[%emt 0:
00:21]} b5 {[%emt 0:00:48]} 22. a4 {[%emt 0:00:21]} Nc5 {[%emt 0:00:07]} 23.
Qc2 {[%emt 0:00:16]} Qd7 {[%emt 0:00:25]} 24. axb5 {[%emt 0:00:13]} axb5 {
[%emt 0:00:01]} 25. Kh2 {[%emt 0:00:44]} f5 {[%emt 0:00:27]} 26. exf5 {[%emt 0:
00:15]} Nxf5 {[%emt 0:00:02]} 27. Nxf5 {[%emt 0:00:10]} Rxf5 {[%emt 0:00:02]}
28. Ne4 {[%emt 0:01:51]} Nxe4 {[%emt 0:01:20]} 29. Qxe4 {[%emt 0:00:02]} Rdf8 {
[%emt 0:00:01]} 30. Kg2 {[%emt 0:00:26]} Qf7 {[%emt 0:00:25]} 31. Rc2 {[%emt 0:
00:14]} Rf3 {[%emt 0:00:10]} 32. Bc1 {[%emt 0:00:55]} Rxb3 {[%emt 0:00:23]} 33.
Be3 {[%emt 0:00:03]} Rb4 {[%emt 0:00:48]} 34. Qd3 {[%emt 0:00:09]} Qf3+ {
[%emt 0:00:01]} 35. Kg1 {[%emt 0:00:27]} e4 {[%emt 0:00:18]} 36. Qe2 {[%emt 0:
00:36]} Qf5 {[%emt 0:00:01]} 37. Kg2 {[%emt 0:00:10]} Qxd5 {[%emt 0:00:08]} 38.
Rd1 {[%emt 0:00:14]} Qf5 {[%emt 0:01:20]} 39. Qd2 {[%emt 0:00:01]} Qf3+ {
[%emt 0:00:38]} 40. Kg1 {[%emt 0:00:08]} Qf7 {[%emt 0:00:44]} 41. Bc5 {[%emt 0:
00:11]} Bxc5 {[%emt 0:00:15]} 42. Rxc5 {[%emt 0:00:01]} Rb3 {[%emt 0:00:18]}
43. Rdc1 {[%emt 0:00:15]} Rd3 {[%emt 0:00:21]} 44. Qe2 {[%emt 0:00:07]} Rd7 {
[%emt 0:00:16]} 45. Rxb5 {[%emt 0:00:03]} Kh8 {[%emt 0:00:21]} 46. Re5 {
[%emt 0:00:02]} Re7 {[%emt 0:00:08]} 47. Rcc5 {[%emt 0:00:06]} Rd7 {[%emt 0:00:
09]} 48. Rxe4 {[%emt 0:00:03]} h6 {[%emt 0:00:03]} 49. Rce5 {[%emt 0:00:02]}
Rfd8 {[%emt 0:00:07]} 50. Re8+ {[%emt 0:00:02]} Kh7 {[%emt 0:00:02]} 51. Rxd8 {
[%emt 0:00:02]} Rxd8 {[%emt 0:00:01]} 52. Re7 {[%emt 0:00:01]} Qg6 {[%emt 0:00:
13]} 53. Rxc7 {[%emt 0:00:07]} Re8 {[%emt 0:00:02]} 54. Re7 {[%emt 0:00:03]}
Rxe7 {[%emt 0:00:08]} 55. Qxe7 {[%emt 0:00:01]} Qf5 {[%emt 0:00:02]} 56. h4 {
[%emt 0:00:05]} Qb1+ {[%emt 0:00:02]} 57. Kg2 {[%emt 0:00:02]} Qf5 {[%emt 0:00:
03]} 58. Qe3 {[%emt 0:00:02]} Qd5+ {[%emt 0:00:05]} 59. Qf3 {[%emt 0:00:01]}
Qe6 {[%emt 0:00:03]} 60. Qd3+ {[%emt 0:00:02]} Kh8 {[%emt 0:00:01]} 61. Qd8+ {
[%emt 0:00:02]} Kh7 {[%emt 0:00:01]} 62. Qd3+ {[%emt 0:00:00]} Kh8 {[%emt 0:00:
01]} 63. Kf3 {[%emt 0:00:02]} Qf6+ {[%emt 0:00:02]} 64. Ke2 {[%emt 0:00:01]}
Qe5+ {[%emt 0:00:02]} 65. Qe3 {[%emt 0:00:02]} Qb5+ {[%emt 0:00:01]} 66. Kf3 {
[%emt 0:00:02]} Qf5+ {[%emt 0:00:01]} 67. Kg2 {[%emt 0:00:01]} Qd5+ {[%emt 0:
00:01]} 68. Kg1 {[%emt 0:00:01]} Qd1+ {[%emt 0:00:01]} 69. Kh2 {[%emt 0:00:02]}
Qd5 {[%emt 0:00:03]} 70. g4 {[%emt 0:00:06]} Qd6+ {[%emt 0:00:01]} 71. Kh3 {
[%emt 0:00:02]} Qc6 {[%emt 0:00:03]} 72. h5 {[%emt 0:00:04]} Qh1+ {[%emt 0:00:
03]} 73. Kg3 {[%emt 0:00:01]} Qg1+ {[%emt 0:00:02]} 74. Kf3 {[%emt 0:00:03]}
Qd1+ {[%emt 0:00:07]} 75. Qe2 {[%emt 0:00:03]} Qd5+ {[%emt 0:00:02]} 76. Kg3 {
[%emt 0:00:01]} Qd6+ {[%emt 0:00:02]} 77. Kg2 {[%emt 0:00:01]} Qd5+ {[%emt 0:
00:01]} 78. f3 {[%emt 0:00:01]} Qd6 {[%emt 0:00:07]} 79. Qe8+ {[%emt 0:00:04]}
Kh7 {[%emt 0:00:02]} 80. Qe4+ {[%emt 0:00:01]} Kh8 {[%emt 0:00:01]} 81. Kh3 {
[%emt 0:00:02]} Qd1 {[%emt 0:00:12]} 82. Qa8+ {[%emt 0:00:07]} Kh7 {[%emt 0:00:
01]} 83. Qe4+ {[%emt 0:00:02]} Kh8 {[%emt 0:00:01]} 84. Kg3 {[%emt 0:00:02]}
Qg1+ {[%emt 0:00:09]} 85. Kf4 {[%emt 0:00:02]} Qc1+ {[%emt 0:00:08]} 86. Kf5 {
[%emt 0:00:04]} Qg5+ {[%emt 0:00:02]} 87. Ke6 {[%emt 0:00:02]} Qf6+ {[%emt 0:
00:01]} 88. Kd5 {[%emt 0:00:02]} Qf7+ {[%emt 0:00:01]} 89. Kd4 {[%emt 0:00:05]}
Qf6+ {[%emt 0:00:01]} 90. Kd3 {[%emt 0:00:02]} Qd6+ {[%emt 0:00:08]} 91. Qd4 {
[%emt 0:00:05]} Qa6+ {[%emt 0:00:05]} 92. Ke3 {[%emt 0:00:03]} Qe6+ {[%emt 0:
00:01]} 93. Kf2 {[%emt 0:00:03]} Qa2+ {[%emt 0:00:08]} 94. Kg3 {[%emt 0:00:02]}
Qa6 {[%emt 0:00:23]} 95. f4 {[%emt 0:00:07]} Qa3+ {[%emt 0:00:10]} 96. Kh4 {
[%emt 0:00:05]} Qf3 {[%emt 0:00:18]} 97. g5 {[%emt 0:00:23]} hxg5+ {[%emt 0:00:
02]} 98. fxg5 {[%emt 0:00:15]} Qh1+ {[%emt 0:00:08]} 99. Kg4 {[%emt 0:00:03]}
Qg2+ {[%emt 0:00:01]} 100. Kf5 {[%emt 0:00:07]} Qf3+ {[%emt 0:00:06]} 101. Kg6
{[%emt 0:00:56]} Qc6+ {[%emt 0:00:01]} 102. Kf7 {[%emt 0:00:07]} Qf3+ {[%emt 0:
00:05]} 103. Kg6 {[%emt 0:00:07]} 1/2-1/2

[Event "Turning Torso Chess Event 2021"]
[Site "Malmoe"]
[Date "2021.08.22"]
[Round "18.1"]
[White "Agrest, Evgenij"]
[Black "Pantzar, Milton"]
[Result "1/2-1/2"]
[ECO "A13"]
[WhiteElo "2568"]
[BlackElo "2424"]
[Annotator "ChessBase"]
[PlyCount "36"]
[EventDate "2021.08.20"]
[EventType "tourn"]
[EventCountry "SWE"]
[SourceTitle "playchess.com"]
[Source "ChessBase"]
[SourceQuality "1"]
[TimeControl "900+5"]

1. Nf3 {[%emt 0:00:03]} d5 {[%emt 0:00:05]} 2. e3 {[%emt 0:00:03]} Nf6 {
[%emt 0:00:05]} 3. c4 {[%emt 0:00:02]} e6 {[%emt 0:00:19]} 4. b3 {[%emt 0:00:
04]} b6 {[%emt 0:00:19]} 5. Bb2 {[%emt 0:00:03]} Bb7 {[%emt 0:00:03]} 6. Nc3 {
[%emt 0:00:09]} Nbd7 {[%emt 0:00:56]} 7. cxd5 {[%emt 0:00:04]} exd5 {[%emt 0:
00:02]} 8. Rc1 {[%emt 0:00:02]} a6 {[%emt 0:00:11]} 9. Bd3 {[%emt 0:00:19]} Bd6
{[%emt 0:00:24]} 10. Ne2 {[%emt 0:00:05]} O-O {[%emt 0:00:27]} 11. Bb1 {
[%emt 0:00:06]} Re8 {[%emt 0:00:27]} 12. O-O {[%emt 0:00:31]} Rc8 {[%emt 0:01:
11]} 13. Bf5 {[%emt 0:00:17]} Ra8 {[%emt 0:01:12]} 14. Qc2 {[%emt 0:00:09]} Qe7
{[%emt 0:00:10]} 15. Ng3 {[%emt 0:00:54]} g6 {[%emt 0:00:15]} 16. Bh3 {[%emt 0:
00:16]} c5 {[%emt 0:01:27]} 17. d4 {[%emt 0:00:06]} cxd4 {[%emt 0:02:12]} 18.
Nxd4 {[%emt 0:01:17]} Nc5 {[%emt 0:00:37]} 1/2-1/2

[Event "Turning Torso Chess Event 2021"]
[Site "Malmoe"]
[Date "2021.08.22"]
[Round "15.1"]
[White "Smith, Axel"]
[Black "Agrest, Evgenij"]
[Result "0-1"]
[ECO "D45"]
[WhiteElo "2451"]
[BlackElo "2568"]
[Annotator "ChessBase"]
[PlyCount "112"]
[EventDate "2021.08.20"]
[EventType "tourn"]
[EventCountry "SWE"]
[SourceTitle "playchess.com"]
[Source "ChessBase"]
[SourceQuality "1"]
[TimeControl "900+5"]

1. c4 {[%emt 0:00:02]} c6 {[%emt 0:00:03]} 2. Nf3 {[%emt 0:00:03]} d5 {[%emt 0:
00:01]} 3. e3 {[%emt 0:00:03]} Nf6 {[%emt 0:00:04]} 4. Nc3 {[%emt 0:00:05]} a6
{[%emt 0:00:02]} 5. d4 {[%emt 0:00:07]} e6 {[%emt 0:00:04]} 6. b3 {[%emt 0:00:
08]} Bb4 {[%emt 0:00:03]} 7. Bd2 {[%emt 0:00:07]} Bd6 {[%emt 0:00:02]} 8. Bd3 {
[%emt 0:00:17]} c5 {[%emt 0:00:02]} 9. cxd5 {[%emt 0:00:19]} exd5 {[%emt 0:00:
03]} 10. dxc5 {[%emt 0:00:18]} Bxc5 {[%emt 0:00:02]} 11. O-O {[%emt 0:00:11]}
O-O {[%emt 0:00:04]} 12. e4 {[%emt 0:00:30]} dxe4 {[%emt 0:01:16]} 13. Nxe4 {
[%emt 0:00:03]} Qxd3 {[%emt 0:00:02]} 14. Nxc5 {[%emt 0:00:02]} Qf5 {[%emt 0:
00:11]} 15. Rc1 {[%emt 0:03:16]} Nc6 {[%emt 0:00:48]} 16. Bg5 {[%emt 0:01:24]}
h6 {[%emt 0:02:29]} 17. Bxf6 {[%emt 0:00:16]} Qxf6 {[%emt 0:00:03]} 18. Nd7 {
[%emt 0:00:07]} Bxd7 {[%emt 0:00:13]} 19. Qxd7 {[%emt 0:00:02]} Rab8 {[%emt 0:
00:21]} 20. Qd3 {[%emt 0:04:25]} Rbd8 {[%emt 0:01:15]} 21. Qb1 {[%emt 0:00:37]}
Nb4 {[%emt 0:00:56]} 22. Rc4 {[%emt 0:01:03]} Nd5 {[%emt 0:00:09]} 23. Qa1 {
[%emt 0:00:11]} Qxa1 {[%emt 0:01:07]} 24. Rxa1 {[%emt 0:00:01]} Rfe8 {[%emt 0:
00:02]} 25. Kf1 {[%emt 0:00:09]} g5 {[%emt 0:01:11]} 26. g3 {[%emt 0:00:43]}
Kg7 {[%emt 0:00:31]} 27. Re1 {[%emt 0:00:07]} Rxe1+ {[%emt 0:00:43]} 28. Kxe1 {
[%emt 0:00:03]} b5 {[%emt 0:00:30]} 29. Rd4 {[%emt 0:00:04]} Re8+ {[%emt 0:00:
01]} 30. Kd2 {[%emt 0:00:17]} Nf6 {[%emt 0:00:03]} 31. Kd3 {[%emt 0:00:03]} Re6
{[%emt 0:00:04]} 32. a4 {[%emt 0:00:25]} bxa4 {[%emt 0:01:00]} 33. Rxa4 {
[%emt 0:00:08]} Rb6 {[%emt 0:00:12]} 34. Nd4 {[%emt 0:00:59]} Nd7 {[%emt 0:00:
11]} 35. b4 {[%emt 0:00:15]} Ne5+ {[%emt 0:00:27]} 36. Ke4 {[%emt 0:00:07]} Kf6
{[%emt 0:00:32]} 37. Nb3 {[%emt 0:00:16]} Nc6 {[%emt 0:00:29]} 38. Kd5 {
[%emt 0:00:13]} Ne7+ {[%emt 0:00:02]} 39. Kc4 {[%emt 0:00:10]} Kg7 {[%emt 0:00:
21]} 40. Nc5 {[%emt 0:00:01]} Rf6 {[%emt 0:00:02]} 41. Nxa6 {[%emt 0:00:21]}
Rxf2 {[%emt 0:00:05]} 42. b5 {[%emt 0:00:01]} Nc8 {[%emt 0:00:05]} 43. Kc5 {
[%emt 0:00:05]} Rxh2 {[%emt 0:00:03]} 44. Rc4 {[%emt 0:00:12]} h5 {[%emt 0:00:
19]} 45. b6 {[%emt 0:00:02]} Rb2 {[%emt 0:00:08]} 46. Nb4 {[%emt 0:00:09]} Nxb6
{[%emt 0:00:02]} 47. Kxb6 {[%emt 0:00:01]} Rb3 {[%emt 0:00:01]} 48. g4 {
[%emt 0:00:09]} h4 {[%emt 0:00:14]} 49. Kc5 {[%emt 0:00:02]} h3 {[%emt 0:00:01]
} 50. Rc2 {[%emt 0:00:14]} f5 {[%emt 0:00:13]} 51. gxf5 {[%emt 0:00:05]} g4 {
[%emt 0:00:00]} 52. Nd5 {[%emt 0:00:02]} g3 {[%emt 0:00:05]} 53. f6+ {[%emt 0:
00:01]} Kf7 {[%emt 0:00:06]} 54. Re2 {[%emt 0:00:20]} g2 {[%emt 0:00:09]} 55.
Re7+ {[%emt 0:00:01]} Kf8 {[%emt 0:00:01]} 56. Rg7 {[%emt 0:00:03]} Rb1 {
[%emt 0:00:05]} 0-1

[Event "Turning Torso Chess Event 2021"]
[Site "Malmoe"]
[Date "2021.08.22"]
[Round "18.2"]
[White "Hellers, Ferdinand"]
[Black "Smith, Axel"]
[Result "1/2-1/2"]
[ECO "B38"]
[WhiteElo "2592"]
[BlackElo "2451"]
[Annotator "ChessBase"]
[PlyCount "43"]
[EventDate "2021.08.20"]
[EventType "tourn"]
[EventCountry "SWE"]
[SourceTitle "playchess.com"]
[Source "ChessBase"]
[SourceQuality "1"]
[TimeControl "900+5"]

1. e4 {[%emt 0:00:03]} c5 {[%emt 0:00:01]} 2. Nf3 {[%emt 0:00:06]} Nc6 {
[%emt 0:00:01]} 3. d4 {[%emt 0:00:09]} cxd4 {[%emt 0:00:01]} 4. Nxd4 {[%emt 0:
00:02]} g6 {[%emt 0:00:01]} 5. c4 {[%emt 0:00:10]} Bg7 {[%emt 0:00:02]} 6. Be3
{[%emt 0:00:02]} d6 {[%emt 0:00:01]} 7. Nc3 {[%emt 0:00:06]} Qb6 {[%emt 0:00:
09]} 8. Nb3 {[%emt 0:01:14]} Bxc3+ {[%emt 0:00:20]} 9. bxc3 {[%emt 0:00:04]}
Qc7 {[%emt 0:00:01]} 10. Be2 {[%emt 0:00:49]} Nf6 {[%emt 0:00:11]} 11. f3 {
[%emt 0:00:02]} O-O {[%emt 0:00:11]} 12. O-O {[%emt 0:01:30]} b6 {[%emt 0:00:
10]} 13. Nd2 {[%emt 0:01:47]} Ba6 {[%emt 0:01:05]} 14. Rb1 {[%emt 0:01:49]}
Rac8 {[%emt 0:00:41]} 15. f4 {[%emt 0:00:28]} Rfe8 {[%emt 0:01:14]} 16. Bd3 {
[%emt 0:00:35]} Nd7 {[%emt 0:01:02]} 17. Qf3 {[%emt 0:00:22]} Na5 {[%emt 0:01:
08]} 18. Rb4 {[%emt 0:01:07]} Nc5 {[%emt 0:00:10]} 19. Be2 {[%emt 0:00:24]} Nd7
{[%emt 0:01:28]} 20. Qg3 {[%emt 0:00:49]} Nc6 {[%emt 0:01:24]} 21. Rb2 {
[%emt 0:00:05]} Na5 {[%emt 0:00:05]} 22. Rb4 {[%emt 0:00:06]} 1/2-1/2

[Event "Turning Torso Chess Event 2021"]
[Site "Malmoe"]
[Date "2021.08.22"]
[Round "15.2"]
[White "Pantzar, Milton"]
[Black "Hellers, Ferdinand"]
[Result "1-0"]
[ECO "A85"]
[WhiteElo "2424"]
[BlackElo "2592"]
[Annotator "ChessBase"]
[PlyCount "71"]
[EventDate "2021.08.20"]
[EventType "tourn"]
[EventCountry "SWE"]
[SourceTitle "playchess.com"]
[Source "ChessBase"]
[SourceQuality "1"]
[TimeControl "900+5"]

1. d4 {[%emt 0:00:03]} f5 {[%emt 0:00:03]} 2. c4 {[%emt 0:00:10]} Nf6 {[%emt 0:
00:02]} 3. Nf3 {[%emt 0:00:02]} g6 {[%emt 0:00:03]} 4. Nc3 {[%emt 0:00:02]} Bg7
{[%emt 0:00:04]} 5. Bf4 {[%emt 0:00:02]} d6 {[%emt 0:00:22]} 6. e3 {[%emt 0:00:
04]} O-O {[%emt 0:00:57]} 7. c5 {[%emt 0:00:02]} e6 {[%emt 0:01:18]} 8. cxd6 {
[%emt 0:01:15]} cxd6 {[%emt 0:00:04]} 9. Bc4 {[%emt 0:00:05]} a6 {[%emt 0:01:
13]} 10. O-O {[%emt 0:00:25]} Kh8 {[%emt 0:02:20]} 11. Rc1 {[%emt 0:01:10]} Nc6
{[%emt 0:00:44]} 12. Qa4 {[%emt 0:03:32]} Bd7 {[%emt 0:01:08]} 13. Qd1 {
[%emt 0:01:33]} Bc8 {[%emt 0:02:04]} 14. a3 {[%emt 0:00:56]} b5 {[%emt 0:01:36]
} 15. Ba2 {[%emt 0:00:13]} Na5 {[%emt 0:00:32]} 16. Qe2 {[%emt 0:00:57]} Nh5 {
[%emt 0:01:06]} 17. b4 {[%emt 0:00:34]} Nb7 {[%emt 0:00:14]} 18. h4 {[%emt 0:
00:47]} Bd7 {[%emt 0:00:15]} 19. Bh2 {[%emt 0:00:41]} Rc8 {[%emt 0:00:13]} 20.
a4 {[%emt 0:01:04]} Qe8 {[%emt 0:00:16]} 21. axb5 {[%emt 0:00:10]} axb5 {
[%emt 0:00:02]} 22. Rfd1 {[%emt 0:00:22]} Nf6 {[%emt 0:00:27]} 23. Bb1 {
[%emt 0:00:33]} Ng4 {[%emt 0:00:14]} 24. Bg3 {[%emt 0:00:27]} e5 {[%emt 0:00:
30]} 25. dxe5 {[%emt 0:00:05]} dxe5 {[%emt 0:00:01]} 26. Nd5 {[%emt 0:00:28]}
Rxc1 {[%emt 0:00:26]} 27. Rxc1 {[%emt 0:00:01]} Nd6 {[%emt 0:00:05]} 28. Rd1 {
[%emt 0:01:03]} Nc4 {[%emt 0:00:32]} 29. Nd2 {[%emt 0:00:06]} Nxd2 {[%emt 0:00:
09]} 30. Qxd2 {[%emt 0:00:04]} Bc6 {[%emt 0:00:07]} 31. Ba2 {[%emt 0:00:24]}
Qb8 {[%emt 0:00:24]} 32. f3 {[%emt 0:00:05]} Nf6 {[%emt 0:00:05]} 33. Nxf6 {
[%emt 0:00:03]} Bxf6 {[%emt 0:00:02]} 34. Qd6 {[%emt 0:00:05]} Qxd6 {[%emt 0:
00:05]} 35. Rxd6 {[%emt 0:00:02]} Be8 {[%emt 0:00:06]} 36. Rxf6 {[%emt 0:00:03]
} 1-0